bitfinex/quotes_SOLUSD_20240702
["timestamp","ask_amount","ask_price","bid_price","bid_amount"]
[1719951552099,13.45,153.02,152.98,0.34]
[1719951553984,13.45,153.01,152.98,0.34]
[1719951554607,13.45,153.02,152.98,0.34]
[1719951554983,13.45,153.03,152.98,0.34]
[1719951555185,6.533,153.07,152.98,13.79]
[1719951555495,13.45,153.04,152.99,13.45]
[1719951555696,13.45,153.04,153.0,0.34]
[1719951558106,13.45,153.03,153.0,0.34]
[1719951558305,13.45,153.03,153.01,0.34]
[1719951558607,13.45,153.03,152.99,0.34]
[1719951559181,6.533,153.07,152.99,0.34]
[1719951559380,13.45,153.03,152.99,0.34]
[1719951560194,13.45,153.05,152.99,13.79]
[1719951560605,6.5326,153.08,153.0,13.45]
[1719951560783,13.45,153.05,153.01,0.34]
[1719951563206,6.808854,153.11,153.02,15.3879]
[1719951563407,13.45,153.09,153.03,13.79]
[1719951563800,6.5315,153.11,153.03,13.79]
[1719951564001,13.45,153.09,153.04,13.45]
[1719951564314,13.45,153.09,153.05,0.34]
[1719951564510,13.45,153.1,153.05,13.79]
[1719951566716,13.45,153.1,153.05,0.34]
[1719951567096,13.45,153.09,153.05,0.34]
[1719951570195,13.45,153.08,153.05,0.34]
[1719951570398,13.45,153.06,153.02,15.3879]
[1719951570600,13.45,153.04,153.02,15.3879]
[1719951571112,13.45,153.03,152.98,16.0817]
[1719951571322,6.5343,153.04,152.98,16.0817]
[1719951571323,6.5356,153.01,152.98,16.0817]
[1719951571497,6.5356,153.01,152.94,28.4505]
[1719951571694,19.64,153.04,152.94,15.0005]
[1719951571695,13.45,152.98,152.94,15.0005]
[1719951571900,13.45,152.97,152.94,15.0005]
[1719951574123,13.45,152.98,152.95,0.34]
[1719951574616,13.45,152.98,152.94,15.0005]
[1719951575113,19.64,153.03,152.94,15.0005]
[1719951575312,13.45,152.98,152.94,15.0005]
[1719951575707,13.45,152.98,152.95,0.17]
[1719951575901,13.45,152.98,152.95,0.34]
[1719951578814,13.45,152.97,152.95,0.34]
[1719951584134,33.4376,152.96,152.89,22.4418]
[1719951584336,13.45,152.92,152.89,16.0854]
[1719951584524,13.45,152.9,152.89,16.0854]
[1719951584839,13.45,152.91,152.89,16.0854]
[1719951585719,13.45,152.9,152.89,16.0854]
[1719951586417,6.5385,152.95,152.89,16.0854]
[1719951589142,6.539,152.93,152.88,0.17]
[1719951589526,35.41312091,152.98,152.88,0.17]
[1719951589731,6.5373,152.97,152.89,0.17]
[1719951590125,28.60372892,152.98,152.86,20.0]
[1719951590529,54.80072892,152.98,152.86,20.0]
[1719951591151,6.5373,152.97,152.86,20.0]
[1719951591443,54.80062892,152.98,152.87,0.17]
[1719951591673,54.80062892,152.98,152.87,0.34]
[1719951594445,6.5373,152.97,152.87,0.34]
[1719951598453,6.5373,152.97,152.87,0.1689]
[1719951599073,6.5377,152.96,152.87,0.1689]
[1719951600186,26.1973,152.97,152.87,0.1689]
[1719951600367,33.67032515,152.97,152.85,23.0172]
[1719951600561,6.539,152.93,152.85,23.0172]
[1719951601575,6.5386,152.94,152.85,23.0172]
[1719951602059,19.66,152.95,152.85,23.0172]
[1719951602391,26.1983,152.95,152.85,23.0172]
[1719951602572,6.5385,152.94,152.86,0.34]
[1719951604098,6.539,152.93,152.86,0.17]
[1719951605290,6.539,152.93,152.86,0.34]
[1719951605493,14.01032515,152.96,152.86,0.34]
[1719951605869,6.5386,152.94,152.86,0.34]
[1719951606484,30.35472515,152.96,152.86,0.34]
[1719951606703,6.5392,152.93,152.86,0.34]
[1719951608387,6.5394,152.92,152.86,0.34]
[1719951609587,6.539,152.93,152.86,0.34]
[1719951610626,6.5405,152.9,152.85,23.0172]
[1719951611009,6.5409,152.89,152.85,23.0172]
[1719951611209,6.5403,152.9,152.85,23.0172]
[1719951611440,19.66,152.93,152.85,23.0172]
[1719951611823,6.5403,152.9,152.85,23.0172]
[1719951612027,19.66,152.93,152.85,23.0172]
[1719951612028,6.5398,152.91,152.85,23.0172]
[1719951613130,26.1998,152.91,152.85,23.0172]
[1719951613341,19.66,152.91,152.85,16.6608]
[1719951613832,6.5403,152.9,152.85,16.6608]
[1719951615414,6.5407,152.89,152.85,16.6608]
[1719951616031,19.66,152.93,152.83,0.8713355]
[1719951616235,6.5422,152.86,152.83,0.8713355]
[1719951616542,19.66,152.89,152.83,0.8713355]
[1719951617344,6.5412,152.88,152.83,0.8713355]
[1719951618636,19.66,152.91,152.83,0.8713355]
[1719951618933,19.66,152.91,152.84,0.34]
[1719951620139,6.541,152.88,152.84,0.34]
[1719951620433,6.541,152.88,152.84,6.947]
[1719951620645,6.5407,152.89,152.84,6.947]
[1719951623217,20.81423198,152.92,152.85,16.4108]
[1719951623416,36.0046,152.96,152.86,0.34]
[1719951623417,6.5389,152.93,152.86,0.34]
[1719951624652,6.5393,152.92,152.86,0.34]
[1719951625219,6.539,152.93,152.86,0.34]
[1719951626529,13.92564411,152.96,152.87,15.1108]
[1719951626735,6.5383,152.95,152.88,0.34]
[1719951626939,7.13172892,152.96,152.88,0.34]
[1719951627148,33.33128458,152.98,152.89,6.4629]
[1719951627442,33.33128458,152.98,152.9,0.34]
[1719951627819,6.5373,152.97,152.9,0.34]
[1719951628529,33.33128458,152.98,152.83,0.8713355]
[1719951628530,22.2462,152.95,152.83,0.8713355]
[1719951628730,6.5419,152.87,152.83,0.8713355]
[1719951628926,6.5419,152.86,152.83,0.8713355]
[1719951629726,36.011,152.9,152.83,0.8713355]
[1719951630050,28.32890024,152.89,152.83,0.8713355]
[1719951630229,6.5411,152.88,152.83,0.8713355]
[1719951631127,6.5411,152.88,152.84,0.34]
[1719951634557,24.54315217,152.89,152.84,0.34]
[1719951635358,24.54315217,152.89,152.83,0.8713355]
[1719951635528,24.54315217,152.89,152.84,0.34]
[1719951636456,6.5411,152.88,152.84,0.34]
[1719951645567,6.5415,152.87,152.84,0.34]
[1719951646868,24.54325217,152.89,152.84,6.6034]
[1719951647051,15.87435193,152.89,152.84,6.6034]
[1719951647253,9.33355193,152.89,152.84,6.6034]
[1719951647656,15.87435193,152.89,152.84,6.6034]
[1719951649653,6.541,152.88,152.84,6.6034]
[1719951650365,15.87435193,152.89,152.84,6.6034]
[1719951650659,6.5408,152.89,152.84,6.6034]
[1719951650869,9.81166304,152.91,152.85,15.1324]
[1719951651046,9.71575915,152.94,152.86,0.34]
[1719951651646,6.5396,152.92,152.86,0.34]
[1719951654674,6.5405,152.9,152.86,0.34]
[1719951656353,9.71575915,152.92,152.86,0.34]
[1719951656354,6.5399,152.91,152.86,0.34]
[1719951659159,6.5399,152.91,152.85,15.0357546]
[1719951659880,16.25525915,152.92,152.85,15.0357546]
[1719951660067,9.71575915,152.92,152.85,15.0357546]
[1719951660256,16.25515915,152.92,152.85,15.0357546]
[1719951661265,16.25515915,152.92,152.86,0.34]
[1719951663159,9.71575915,152.92,152.86,0.34]
[1719951663360,6.8036264,152.95,152.86,0.34]
[1719951663567,6.5383,152.95,152.86,0.34]
[1719951665883,6.80378242,152.97,152.87,15.4291]
[1719951666072,6.80378242,152.97,152.88,0.34]
[1719951666704,13.34098242,152.97,152.88,0.34]
[1719951666991,6.536,153.0,152.9,16.587]
[1719951667181,6.5356,153.01,152.91,0.34]
[1719951667369,21.62344366,153.02,152.91,20.34]
[1719951667570,6.5356,153.01,152.91,20.34]
[1719951668387,6.5359,153.0,152.91,20.34]
[1719951668591,6.5365,152.99,152.91,20.34]
[1719951669891,6.5359,153.0,152.91,20.34]
[1719951670190,15.08804366,153.02,152.91,20.34]
[1719951670576,6.5347,153.03,152.93,106.4395]
[1719951670891,8.18696135,153.04,152.94,0.34]
[1719951671089,6.80425191,153.05,152.95,15.1839]
[1719951671393,6.80425191,153.05,152.96,0.34]
[1719951673694,6.5343,153.04,152.96,0.34]
[1719951680984,6.80425191,153.05,152.97,122.0281]
[1719951681182,6.5329,153.08,152.98,20.34]
[1719951681743,6.5322,153.09,152.99,115.6946]
[1719951681995,6.5322,153.09,153.0,0.34]
[1719951682203,6.5318,153.1,153.0,20.34]
[1719951682505,6.5318,153.1,153.0,21.64657982]
[1719951682689,6.5321,153.09,153.0,21.64657982]
[1719951682886,6.5318,153.1,153.0,20.34]
[1719951684887,6.80278712,153.11,153.01,121.824]
[1719951685087,6.5309,153.12,153.02,20.34]
[1719951686009,30.26023807,153.15,153.02,20.34]
[1719951686511,6.5306,153.13,153.02,20.34]
[1719951688007,6.5318,153.1,153.02,20.34]
[1719951688689,6.5312,153.11,153.02,20.34]
[1719951689005,6.5309,153.12,153.02,120.34]
[1719951689509,6.5309,153.12,153.02,20.34]
[1719951690186,42.09619559,153.15,153.02,20.34]
[1719951690512,6.5311,153.12,153.02,20.34]
[1719951691309,6.5313,153.11,153.02,20.34]
[1719951693109,6.5309,153.12,153.02,20.34]
[1719951694016,6.5317,153.1,153.02,20.0]
[1719951694490,6.5325,153.08,153.01,21.824]
[1719951695309,6.5322,153.09,153.01,21.824]
[1719951695792,6.5322,153.09,153.02,0.34]
[1719951696909,6.5326,153.08,153.02,0.34]
[1719951697815,6.5322,153.09,153.02,0.34]
[1719951698288,6.5325,153.08,153.01,21.824]
[1719951698487,6.5333,153.07,153.01,15.6946]
[1719951703919,7.82404248,153.08,153.01,15.6946]
[1719951704320,7.82404248,153.08,153.02,0.34]
[1719951706217,14.35654248,153.08,153.02,0.34]
[1719951706593,7.82404248,153.07,153.02,0.34]
[1719951706794,7.82404248,153.07,153.02,0.17]
[1719951707696,14.35704248,153.07,153.02,0.17]
[1719951708324,6.5334,153.06,153.02,0.17]
[1719951710921,7.82404248,153.07,153.02,0.17]
[1719951711128,7.82404248,153.07,153.01,15.6946]
[1719951711315,6.5334,153.06,153.01,15.6946]
[1719951715721,7.82404248,153.07,153.02,0.17]
[1719951715931,6.80782229,153.09,153.03,6.307]
[1719951716227,13.04328113,153.1,153.04,0.34]
[1719951716538,6.5314,153.11,153.04,0.34]
[1719951717123,6.5314,153.11,153.05,15.8372]
[1719951717317,6.5314,153.11,153.06,0.34]
[1719951717521,20.72490426,153.12,153.06,0.34]
[1719951719326,13.33585622,153.12,153.06,0.34]
[1719951720224,6.5312,153.11,153.06,0.34]
[1719951723531,6.5317,153.1,153.06,0.34]
[1719951723740,6.5322,153.09,153.05,15.8372]
[1719951724727,6.5329,153.07,153.05,15.8372]
[1719951724923,43.37834804,153.1,153.01,15.6415]
[1719951725221,6.5326,153.08,153.01,15.6415]
[1719951726434,6.5326,153.08,153.02,0.34]
[1719951729042,7.38904804,153.1,153.02,0.34]
[1719951729210,13.92104804,153.1,153.02,0.34]
[1719951729629,6.5321,153.09,153.02,0.34]
[1719951730419,6.5325,153.08,153.02,0.34]
[1719951731125,6.5321,153.09,153.02,0.34]
[1719951732637,7.38904804,153.1,153.02,0.34]
[1719951734719,7.38904804,153.1,153.03,6.4129]
[1719951735018,7.38904804,153.1,153.04,0.34]
[1719951735632,6.5315,153.11,153.04,0.34]
[1719951736923,23.13037315,153.12,153.03,6.4129]
[1719951737124,13.78144897,153.12,153.03,6.4129]
[1719951737541,6.5324,153.09,153.03,6.4129]
[1719951738146,6.5325,153.08,153.03,6.4129]
[1719951738453,6.5329,153.07,153.03,6.4129]
[1719951738656,6.5325,153.08,153.03,6.4129]
[1719951740927,6.5322,153.09,153.03,6.4129]
[1719951741441,7.73196135,153.11,153.03,6.4129]
[1719951741658,20.31254897,153.12,153.04,0.34]
[1719951744250,13.78144897,153.12,153.05,15.575]
[1719951744457,6.51138113,153.13,153.06,0.34]
[1719951744631,6.87525915,153.15,153.06,0.34]
[1719951745045,26.53,153.14,153.06,0.34]
[1719951747635,6.5304,153.13,153.06,0.34]
[1719951748862,6.5309,153.12,153.06,0.34]
[1719951754664,6.5305,153.13,153.06,0.34]
[1719951758166,20.0,153.14,153.06,0.34]
[1719951758357,26.59019804,153.14,153.06,0.34]
[1719951758743,33.39342688,153.14,153.06,0.34]
[1719951759375,6.531,153.12,153.06,0.34]
[1719951760957,6.5305,153.13,153.06,0.34]
[1719951764675,6.531,153.12,153.06,0.34]
[1719951765065,6.5307,153.13,153.06,0.34]
[1719951766273,19.66,153.12,153.05,15.575]
[1719951766469,6.5315,153.11,153.05,15.575]
[1719951766785,6.5316,153.1,153.05,15.575]
[1719951767068,6.5314,153.11,153.05,15.575]
[1719951768495,14.26286135,153.12,153.05,15.575]
[1719951768779,6.5312,153.11,153.05,15.575]
[1719951769783,6.5312,153.11,152.97,357.25778502]
[1719951769976,6.5312,153.11,152.98,20.34]
[1719951770774,40.72894575,153.12,152.99,0.70165432]
[1719951771085,40.72894575,153.12,153.0,0.34]
[1719951771270,40.72894575,153.12,153.01,0.70166481]
[1719951771476,40.72894575,153.12,153.02,1.04161895]
[1719951771670,14.53804575,153.12,153.0,0.34]
[1719951771878,14.53804575,153.12,153.0,20.34]
[1719951772871,6.5314,153.11,153.01,21.2196]
[1719951773070,6.5314,153.11,153.02,0.17]
[1719951773360,6.5314,153.11,153.02,0.34]
[1719951774375,14.26336135,153.11,153.02,0.34]
[1719951776883,14.26326135,153.11,153.02,0.34]
[1719951777587,19.66,153.1,153.01,15.0766]
[1719951777828,6.5332,153.07,152.97,22.9358]
[1719951778896,26.1926,153.08,152.97,22.9358]
[1719951779390,26.1926,153.08,152.98,0.34]
[1719951779692,6.5326,153.08,152.98,0.34]
[1719951780292,28.55365712,153.09,152.98,0.34]
[1719951780470,20.0,153.08,152.98,0.34]
[1719951781573,20.0,153.09,152.98,0.34]
[1719951781895,26.5321,153.09,152.98,0.34]
[1719951782479,20.0,153.09,152.99,16.3493]
[1719951782673,20.0,153.09,153.0,0.34]
[1719951783369,20.0,153.1,153.0,1.64670756]
[1719951783997,13.38823552,153.11,153.0,0.34]
[1719951784209,6.79803748,153.11,153.01,22.2667]
[1719951784486,6.79803748,153.11,153.02,1.29895259]
[1719951785293,13.32923748,153.11,153.02,1.29895259]
[1719951785493,13.32923748,153.11,153.02,0.34]
[1719951786077,6.79803748,153.11,153.02,0.34]
[1719951786393,6.5303,153.14,153.02,0.34]
[1719951786394,6.5303,153.14,153.03,15.6294]
[1719951786580,6.5303,153.14,153.04,0.34]
[1719951786811,6.5304,153.13,153.05,1.08545535]
[1719951786979,6.5304,153.13,153.06,0.34]
[1719951787178,6.5301,153.14,153.06,1.42531351]
[1719951787483,6.5301,153.14,153.06,0.34]
[1719951787674,6.5301,153.14,153.05,1.42524259]
[1719951787876,6.5301,153.14,153.07,0.17]
[1719951788084,6.5301,153.14,153.05,1.42524259]
[1719951788292,13.32650489,153.17,153.06,22.7064]
[1719951788568,6.5283,153.18,153.07,20.34]
[1719951788995,6.5287,153.17,153.07,20.34]
[1719951789374,6.5283,153.18,153.07,20.34]
[1719951792799,6.5278,153.19,153.07,20.34]
[1719951793788,6.5283,153.18,153.07,20.34]
[1719951794393,13.32623336,153.2,153.08,16.0756]
[1719951794585,13.32623336,153.2,153.09,0.34]
[1719951795985,6.5279,153.19,153.09,0.34]
[1719951799073,6.79843336,153.2,153.09,0.34]
[1719951799270,20.0,153.19,153.09,0.34]
[1719951800200,20.0,153.19,153.1,21.6839]
[1719951800390,20.0,153.19,153.11,0.34]
[1719951801203,13.42273357,153.22,153.11,0.34]
[1719951801413,13.42273357,153.22,153.11,20.34]
[1719951801709,13.6934748,153.22,153.11,20.34]
[1719951801869,18.88112361,153.25,153.13,6.5483]
[1719951802074,6.89613357,153.26,153.14,15.84229464]
[1719951802273,6.7965786,153.25,153.15,0.41627509]
[1719951802507,6.7965786,153.25,153.16,0.34]
[1719951802672,6.526,153.24,153.16,0.75622073]
[1719951803187,6.526,153.24,153.16,0.34]
[1719951803486,26.5264,153.23,153.17,0.17]
[1719951803684,6.5265,153.22,153.15,0.34]
[1719951804400,6.5257,153.24,153.15,0.34]
[1719951804613,6.7965786,153.25,153.15,0.34]
[1719951804903,20.0,153.24,153.15,0.34]
[1719951805278,20.0,153.24,153.14,15.1356]
[1719951805279,39.66,153.24,153.14,15.1356]
[1719951805503,6.527,153.21,153.14,15.1356]
[1719951806006,6.5266,153.22,153.14,15.1356]
[1719951806691,6.5266,153.22,153.15,0.34]
[1719951806892,6.5261,153.23,153.15,0.34]
[1719951807488,13.42193357,153.24,153.15,0.34]
[1719951812394,6.89613357,153.24,153.15,0.34]
[1719951813489,6.7965786,153.25,153.16,22.8271]
[1719951813811,6.5252,153.26,153.18,15.3769]
[1719951813996,6.5252,153.26,153.19,0.34]
[1719951814822,6.5253,153.25,153.19,0.34]
[1719951814981,6.5257,153.24,153.19,0.34]
[1719951815611,6.5254,153.25,153.19,0.34]
[1719951815908,6.527,153.21,153.18,15.3769]
[1719951816096,6.89613357,153.25,153.18,15.3769]
[1719951816300,6.5269,153.22,153.18,15.3769]
[1719951817893,6.527,153.21,153.18,15.3769]
[1719951818094,19.66,153.24,153.14,15.3272]
[1719951818410,6.5277,153.2,153.14,15.3272]
[1719951819307,6.527,153.21,153.14,15.3272]
[1719951820409,6.527,153.21,153.15,0.34]
[1719951823315,6.5275,153.2,153.15,0.34]
[1719951823518,6.5275,153.2,153.14,15.3272]
[1719951823519,6.5278,153.19,153.14,15.3272]
[1719951823717,6.5283,153.18,153.14,15.3272]
[1719951824214,19.66,153.2,153.14,15.3272]
[1719951824514,19.66,153.18,153.08,22.4628]
[1719951824719,6.5296,153.15,153.08,22.4628]
[1719951826516,13.44,153.12,153.08,22.4628]
[1719951828220,13.44,153.13,153.09,0.17]
[1719951828413,13.44,153.13,153.09,0.34]
[1719951828611,6.89613357,153.19,153.09,0.34]
[1719951828803,6.89613357,153.19,153.09,13.78]
[1719951828804,13.44,153.14,153.09,13.78]
[1719951829114,6.5285,153.18,153.09,13.78]
[1719951829315,13.44,153.15,153.09,13.78]
[1719951830220,13.44,153.14,153.09,13.78]
[1719951830921,13.44,153.14,153.09,0.34]
[1719951831303,13.44,153.14,153.09,13.78]
[1719951832115,13.42403357,153.19,153.1,13.44]
[1719951832320,13.44,153.15,153.11,0.34]
[1719951835426,13.44,153.15,153.1,0.34]
[1719951837428,19.66,153.2,153.1,0.34]
[1719951837609,20.0,153.19,153.1,13.44]
[1719951837930,13.44,153.15,153.11,0.34]
[1719951838524,13.44,153.15,153.1,0.34]
[1719951839028,6.5292,153.16,153.1,0.34]
[1719951839216,13.44,153.13,153.11,0.17]
[1719951839415,13.44,153.13,153.09,0.34]
[1719951840226,13.44,153.14,153.09,0.34]
[1719951840529,13.44,153.14,153.09,13.78]
[1719951841109,6.79680184,153.19,153.09,13.78]
[1719951841325,6.79680184,153.19,153.1,13.44]
[1719951841326,13.44,153.15,153.1,13.44]
[1719951841528,13.44,153.15,153.11,0.34]
[1719951841927,13.44,153.16,153.11,13.78]
[1719951842116,6.79680184,153.19,153.13,16.4341]
[1719951842315,13.42303357,153.22,153.14,0.34]
[1719951842629,6.527,153.21,153.14,0.34]
[1719951842818,6.89613357,153.22,153.15,13.44]
[1719951843012,6.89613357,153.22,153.16,0.17]
[1719951843309,22.4122,153.25,153.16,0.17]
[1719951843310,15.8869,153.25,153.16,15.08477281]
[1719951843514,13.44,153.21,153.16,15.08477281]
[1719951844010,6.5258,153.24,153.16,15.08477281]
[1719951844011,6.5258,153.24,153.16,13.78]
[1719951844330,13.44,153.22,153.17,13.44]
[1719951844631,13.44,153.22,153.18,16.7495]
[1719951844840,13.44,153.21,153.18,16.5795]
[1719951845006,13.44,153.2,153.18,16.4095]
[1719951845207,6.5262,153.23,153.18,16.4095]
[1719951845430,49.66469416,153.26,153.18,16.4095]
[1719951845431,6.5258,153.24,153.18,16.4095]
[1719951845635,13.44,153.22,153.18,16.4095]
[1719951846004,6.5258,153.24,153.18,16.4095]
[1719951846223,13.44,153.22,153.18,16.4095]
[1719951847226,20.21739416,153.26,153.19,1.64547951]
[1719951847435,13.44,153.23,153.19,1.64547951]
[1719951847818,6.5249,153.26,153.19,15.08547951]
[1719951848127,6.5245,153.27,153.2,13.44]
[1719951848325,6.5245,153.27,153.21,1.64521919]
[1719951848720,13.44,153.26,153.21,1.64521919]
[1719951849430,13.44,153.26,153.21,15.08521919]
[1719951849635,13.44,153.26,153.22,1.30513399]
[1719951850005,13.44,153.23,153.22,1.30513399]
[1719951850210,13.44,153.23,153.22,0.34]
[1719951850610,6.5244,153.27,153.22,0.34]
[1719951850812,13.44,153.23,153.22,0.34]
[1719951851017,6.5244,153.27,153.22,0.34]
[1719951851214,13.44,153.23,153.22,0.34]
[1719951851420,60.6696764,153.28,153.22,0.34]
[1719951851733,13.44,153.24,153.23,0.34]
[1719951854928,6.9095764,153.28,153.23,0.34]
[1719951855122,13.44,153.24,153.23,0.34]
[1719951856042,0.3855764,153.28,153.23,0.34]
[1719951856215,54.1455764,153.28,153.23,0.34]
[1719951856423,13.44,153.24,153.23,0.34]
[1719951857949,13.44,153.25,153.23,0.34]
[1719951858626,13.44,153.24,153.23,0.34]
[1719951862338,0.3855764,153.28,153.23,15.6197]
[1719951863031,13.44,153.26,153.23,15.6197]
[1719951863847,0.3855764,153.28,153.23,15.6197]
[1719951864356,13.44,153.27,153.23,15.6197]
[1719951864555,13.44,153.24,153.23,15.6197]
[1719951864934,13.8255764,153.28,153.23,15.6197]
[1719951865137,13.44,153.24,153.23,15.6197]
[1719951865954,13.44,153.24,153.19,22.1863]
[1719951866121,13.44,153.2,153.19,22.1863]
[1719951866332,13.44,153.2,153.19,42.1863]
[1719951866727,13.44,153.2,153.19,35.9648]
[1719951867339,13.44,153.21,153.19,35.9648]
[1719951867747,13.44,153.21,153.2,0.34]
[1719951868123,54.1455764,153.28,153.2,0.34]
[1719951868353,6.9097764,153.28,153.2,0.34]
[1719951868647,0.3855764,153.28,153.2,0.34]
[1719951868828,13.44,153.24,153.2,0.34]
[1719951871045,13.44,153.25,153.2,0.34]
[1719951872332,13.44,153.24,153.2,0.34]
[1719951876745,13.8255764,153.28,153.2,0.34]
[1719951876931,13.44,153.23,153.2,0.34]
[1719951877252,13.44,153.22,153.2,0.34]
[1719951877633,13.44,153.22,153.19,35.9648]
[1719951879047,13.44,153.22,153.2,0.34]
[1719951879443,13.8255764,153.28,153.19,15.9648]
[1719951879444,13.44,153.21,153.19,15.9648]
[1719951879636,13.44,153.2,153.19,15.9648]
[1719951879834,6.5254,153.25,153.19,15.9648]
[1719951880155,13.44,153.2,153.19,15.9648]
[1719951880450,13.44,153.21,153.19,15.9648]
[1719951880634,6.5256,153.25,153.19,15.9648]
[1719951880635,13.44,153.2,153.19,15.9648]
[1719951882336,13.3474764,153.28,153.19,16.3048]
[1719951882639,6.8233764,153.28,153.2,0.34]
[1719951882955,13.44,153.21,153.2,0.34]
[1719951883457,13.44,153.22,153.2,0.34]
[1719951884142,13.44,153.23,153.2,0.34]
[1719951884953,6.8233764,153.28,153.2,0.34]
[1719951885257,13.44,153.23,153.2,0.34]
[1719951887055,0.3855764,153.28,153.22,113.44]
[1719951887255,0.3855764,153.28,153.25,30.0557]
[1719951887459,0.3855764,153.28,153.26,20.34]
[1719951888557,0.3855764,153.28,153.26,0.34]
[1719951888734,0.3855764,153.28,153.26,20.34]
[1719951889066,6.79429205,153.36,153.27,22.1637]
[1719951889243,13.44,153.39,153.31,100.0]
[1719951889440,60.8383884,153.44,153.33,13.44]
[1719951889636,60.8383884,153.44,153.34,14.59370603]
[1719951889637,7.0783884,153.44,153.34,14.59370603]
[1719951889838,13.44,153.39,153.34,0.34]
[1719951890156,13.44,153.38,153.34,0.34]
[1719951890357,0.8559884,153.44,153.37,13.44]
[1719951890565,13.44,153.43,153.38,20.34]
[1719951891059,0.8559884,153.44,153.38,20.34]
[1719951891060,13.44,153.41,153.38,20.34]
[1719951891253,0.8559884,153.44,153.38,0.34]
[1719951891455,13.44,153.42,153.38,0.34]
[1719951891651,13.44,153.43,153.38,13.78]
[1719951891837,0.8559884,153.44,153.38,0.34]
[1719951893442,0.8559884,153.44,153.38,100.34]
[1719951893639,0.8559884,153.44,153.39,20.0]
[1719951893843,0.8559884,153.44,153.4,0.34]
[1719951899069,0.8559884,153.44,153.4,0.17]
[1719951900274,42.24956485,153.51,153.4,0.17]
[1719951900275,48.9873,153.56,153.43,100.0]
[1719951900454,55.4997,153.56,153.44,20.34]
[1719951900650,6.5127,153.55,153.45,0.91502671]
[1719951900876,6.5127,153.55,153.46,1.2545976]
[1719951900877,6.5126,153.55,153.46,1.2545976]
[1719951901051,6.5126,153.55,153.47,1.15989075]
[1719951901376,12.94063176,153.56,153.48,0.34]
[1719951901780,5.6472,153.56,153.48,0.34]
[1719951902983,26.76,153.55,153.48,0.34]
[1719951903156,6.513,153.54,153.48,0.34]
[1719951903351,26.76,153.55,153.48,0.34]
[1719951903772,33.2726,153.55,153.48,0.34]
[1719951904169,33.2727,153.55,153.48,0.34]
[1719951904558,26.76,153.55,153.48,0.34]
[1719951905171,33.2726,153.55,153.48,0.34]
[1719951905356,26.76,153.55,153.44,20.0]
[1719951905551,6.5134,153.53,153.42,20.0]
[1719951906777,6.513,153.54,153.42,20.0]
[1719951907489,33.2726,153.55,153.43,0.34]
[1719951908356,26.76,153.55,153.44,100.88544483]
[1719951908669,26.76,153.55,153.45,20.34]
[1719951908869,33.2725,153.55,153.45,20.34]
[1719951909276,6.513,153.54,153.45,20.34]
[1719951909464,33.2725,153.55,153.45,20.34]